bitfinex-derivatives/quotes_SOLF0:USTF0_20250228
["timestamp","ask_amount","ask_price","bid_price","bid_amount"]
[1740714519897,7.8112,128.15,128.11,30.19456137]
[1740714520097,14.67341362,128.2,128.11,28.29476137]
[1740714520402,0.05509098,128.14,128.12,0.05181519]
[1740714520695,4.0258,128.19,128.11,28.29476137]
[1740714521001,0.05391169,128.14,128.12,0.05414956]
[1740714521192,7.8122,128.13,128.12,0.05414956]
[1740714521501,7.8122,128.13,128.07,28.29476137]
[1740714521692,194.0258,128.19,128.07,28.29476137]
[1740714521898,7.8132,128.12,128.07,28.29476137]
[1740714522098,194.0258,128.19,128.07,28.29476137]
[1740714522497,7.8122,128.13,128.12,8.065e-05]
[1740714522892,49.6835,128.13,128.12,8.065e-05]
[1740714523602,26.2635,128.13,128.12,8.065e-05]
[1740714525700,7.8122,128.13,128.12,8.065e-05]
[1740714525891,0.05056927,128.14,128.12,8.065e-05]
[1740714526291,1.9691,128.2,128.12,8.065e-05]
[1740714526492,84.14929686,128.21,128.12,8.065e-05]
[1740714526700,84.14929686,128.21,128.05,1.41820603]
[1740714527090,84.14929686,128.21,128.06,1.9598]
[1740714527400,0.05083776,128.15,128.12,0.05801984]
[1740714527598,0.05083776,128.15,128.07,4.1158]
[1740714527799,86.18289686,128.21,128.07,4.1158]
[1740714527999,0.05028766,128.15,128.12,0.05586322]
[1740714528200,86.18289686,128.21,128.07,32.3599921]
[1740714528400,0.05410409,128.15,128.13,0.05998775]
[1740714528601,86.18289686,128.21,128.13,28.2441921]
[1740714528802,0.0550468,128.15,128.13,28.29419905]
[1740714529002,2.0336,128.21,128.13,28.2441921]
[1740714529199,0.05763929,128.15,128.13,28.29346022]
[1740714529702,0.05872447,128.15,128.13,28.29863218]
[1740714529902,0.05872447,128.15,128.13,0.05444008]
[1740714530802,2.071,128.23,128.13,0.05444008]
[1740714531104,2.071,128.23,128.07,4.1158]
[1740714531509,2.071,128.23,128.07,32.3599921]
[1740714531903,0.0508171,128.16,128.14,0.05822596]
[1740714532204,2.071,128.23,128.14,28.2441921]
[1740714532408,0.05458682,128.16,128.14,28.3002717]
[1740714532712,2.071,128.23,128.14,28.2441921]
[1740714532904,0.05076109,128.16,128.14,28.30232893]
[1740714533202,2.071,128.23,128.14,28.2441921]
[1740714533407,0.05948692,128.16,128.14,0.05330474]
[1740714533608,7.8095,128.18,128.07,4.1158]
[1740714533803,0.05050282,128.16,128.15,7.811]
[1740714534011,7.8083,128.2,128.11,14.62]
[1740714534210,1.9504,128.25,128.11,14.62]
[1740714534401,7.8073,128.21,128.11,14.62]
[1740714535109,0.05274291,128.17,128.15,0.05475069]
[1740714535303,1.9504,128.25,128.11,28.2441921]
[1740714535509,14.62,128.2,128.11,28.2441921]
[1740714535707,0.05954454,128.19,128.17,0.05298585]
[1740714535913,0.05954454,128.19,128.08,1.9271]
[1740714536114,0.05954454,128.19,128.17,7.01e-06]
[1740714536313,14.62,128.2,128.17,7.01e-06]
[1740714536611,14.62,128.2,128.08,1.9271]
[1740714536818,14.62,128.2,128.08,30.1712921]
[1740714537014,7.8114,128.15,128.1,7.8136]
[1740714537216,14.62,128.2,128.1,28.2441921]
[1740714537517,14.62,128.2,128.08,1.9271]
[1740714537518,0.05186384,128.14,128.08,1.9271]
[1740714537920,0.05186384,128.14,128.1,0.05415509]
[1740714538414,14.62,128.2,128.1,0.05415509]
[1740714538616,14.62,128.2,128.08,1.9271]
[1740714539519,0.05361393,128.15,128.13,0.05626963]
[1740714539827,7.8094,128.18,128.14,7.8112]
[1740714540011,14.62,128.22,128.08,1.9271]
[1740714540217,0.05047021,128.17,128.15,0.05638811]
[1740714540522,1.9504,128.25,128.08,196.9271]
[1740714540713,1.9504,128.25,128.08,225.11942826]
[1740714540915,7.81,128.17,128.13,7.8117]
[1740714541116,1.9504,128.25,128.13,36.00402826]
[1740714541317,1.9504,128.25,128.13,28.19232826]
[1740714541619,0.04950024,128.2,128.13,28.19232826]
[1740714541820,0.04950024,128.2,128.18,0.05573498]
[1740714542022,0.04950024,128.2,128.08,1.9271]
[1740714542216,1.9504,128.25,128.18,0.04957987]
[1740714542415,1.9504,128.25,128.08,196.9271]
[1740714542721,7.8073,128.21,128.17,7.8093]
[1740714543029,1.9504,128.25,128.08,178.57615819]
[1740714543424,18.5423,128.28,128.09,15.6292]
[1740714543425,3.9223,128.28,128.09,15.6292]
[1740714543720,147.72929363,128.29,128.15,0.04934765]
[1740714543917,31.2796003,128.29,128.16,226.94]
[1740714544121,31.2796003,128.29,128.17,1.9826]
[1740714544520,7.8036,128.28,128.17,1.9826]
[1740714544919,0.05807257,128.24,128.21,0.05158072]
[1740714545125,31.2796003,128.32,128.21,0.05158072]
[1740714545330,31.2796003,128.32,128.21,28.19232826]
[1740714545633,2.0873,128.31,128.17,1.9826]
[1740714545926,2.0873,128.31,128.18,2.0461]
[1740714546126,7.8084,128.2,128.18,2.0461]
[1740714546327,0.0494048,128.26,128.23,1.639e-05]
[1740714546529,0.0494048,128.26,128.17,28.19232826]
[1740714546530,4.1229,128.26,128.17,28.19232826]
[1740714547330,7.8091,128.18,128.17,28.19232826]
[1740714547531,0.05449934,128.23,128.2,0.05886217]
[1740714547829,7.8073,128.21,128.2,28.19232826]
[1740714548133,7.8073,128.21,128.2,28.25002404]
[1740714548428,7.8098,128.17,128.11,3.9981]
[1740714548731,2.0873,128.25,128.11,32.19042826]
[1740714548926,2.0873,128.25,128.11,3.9981]
[1740714549324,7.8068,128.22,128.15,7.8104]
[1740714549631,2.0873,128.25,128.17,0.05399653]
[1740714549632,0.05857422,128.19,128.17,0.05399653]
[1740714550036,2.0873,128.25,128.11,3.9981]
[1740714550229,0.05357047,128.19,128.17,9.1e-06]
[1740714550430,0.05357047,128.19,128.11,30.23842826]
[1740714550630,4.0731,128.19,128.11,28.19232826]
[1740714551030,194.0731,128.19,128.11,28.19232826]
[1740714551430,0.05553064,128.16,128.14,1.807e-05]
[1740714551630,7.811,128.15,128.14,1.807e-05]
[1740714552829,197.811,128.15,128.14,1.807e-05]
[1740714553135,31.231,128.15,128.14,1.807e-05]
[1740714553431,56.07361119,128.15,128.14,1.807e-05]
[1740714553636,59.60538227,128.15,128.14,1.807e-05]
[1740714554033,7.8185,128.03,127.99,34.22246521]
[1740714554244,7.8185,128.03,127.99,62.41479347]
[1740714554731,3.9871,128.07,127.99,62.41479347]
[1740714554932,3.9871,128.07,127.99,60.52799347]
[1740714555238,0.04993716,128.04,128.02,0.05120764]
[1740714557935,0.04993716,128.04,128.02,28.2435359]
[1740714558743,0.04993716,128.04,128.02,0.05120764]
[1740714559542,0.04993716,128.04,128.02,28.2435359]
[1740714560036,0.04993716,128.04,127.97,1.8869]
[1740714560238,0.04993716,128.04,127.97,30.07922826]
[1740714560635,7.82,128.01,127.97,30.07922826]
[1740714560843,1.9189,128.05,127.97,30.07922826]
[1740714561143,14.62,128.04,127.97,28.19232826]
[1740714561337,0.05576238,128.02,128.0,0.05422038]
[1740714561935,0.05576238,128.02,127.94,2.0017]
[1740714562139,38.06,128.04,127.94,28.19232826]
[1740714562439,7.8237,127.95,127.94,28.19232826]
[1740714562642,23.44,128.02,127.89,4.1051]
[1740714562845,213.44,128.01,127.89,32.29742826]
[1740714563041,0.05518043,127.97,127.89,32.29742826]
[1740714563245,14.67518043,127.97,127.89,32.29742826]
[1740714563546,14.62,127.97,127.94,2.884e-05]
[1740714563743,2.0002,127.96,127.94,2.884e-05]
[1740714564244,2.0002,128.0,127.94,2.884e-05]
[1740714564645,0.05449579,127.98,127.94,2.884e-05]
[1740714564938,7.8232,127.95,127.94,2.884e-05]
[1740714565337,0.05449579,127.98,127.94,2.884e-05]
[1740714565536,7.8221,127.97,127.94,2.884e-05]
[1740714565736,7.8221,127.97,127.72,183.26947144]
[1740714566042,7.8215,127.98,127.72,183.26947144]
[1740714566242,7.8215,127.98,127.72,201.40359324]
[1740714566444,2.0002,128.0,127.84,240.67232826]
[1740714566943,0.05423747,127.93,127.91,0.05412633]
[1740714567144,2.0002,128.0,127.84,240.67232826]
[1740714567536,0.05790189,127.93,127.91,0.04940333]
[1740714567740,0.05790189,127.93,127.84,240.67232826]
[1740714567937,2.0002,128.0,127.84,240.67232826]
[1740714568143,0.05413079,127.9,127.87,7.87843027]
[1740714568444,2.0002,128.0,127.91,0.05901746]
[1740714568643,7.825,127.92,127.91,28.19232826]
[1740714568841,7.825,127.92,127.86,7.8286]
[1740714569046,14.62,127.94,127.9,0.04982498]
[1740714569247,7.8256,127.91,127.9,0.04982498]
[1740714569549,1.99874495,127.93,127.91,9.884e-05]
[1740714569746,7.825,127.92,127.91,9.884e-05]
[1740714570045,1.9462,127.93,127.76,227.24]
[1740714570250,2.0058,127.91,127.76,28.19232826]
[1740714570548,1.954,127.9,127.76,28.19232826]
[1740714570847,0.0526597,127.85,127.82,0.0551791]
[1740714571242,14.62,127.87,127.73,14.62]
[1740714571449,7.8306,127.83,127.82,0.04939763]
[1740714571643,1.9109,127.86,127.71,6.1792]
[1740714571849,0.05865432,127.84,127.81,0.05538791]
[1740714572148,1.9109,127.86,127.71,34.37152826]
[1740714572339,1.9109,127.86,127.71,6.1792]
[1740714572541,14.62,127.87,127.81,0.05393692]
[1740714572542,0.05492045,127.84,127.81,0.05393692]
[1740714572744,14.62,127.87,127.71,6.1792]
[1740714573048,0.05746803,127.84,127.81,0.05670313]
[1740714573244,14.62,127.87,127.77,7.8338]
[1740714573445,7.8299,127.84,127.81,0.05964492]
[1740714573748,0.05904138,127.84,127.81,0.05964492]
[1740714574451,1.9109,127.9,127.81,0.05964492]
[1740714574652,14.62,127.93,127.81,0.05964492]
[1740714574847,14.62,127.93,127.79,3.9185]
[1740714575042,1.9494,127.96,127.79,3.9185]
[1740714575247,16.5694,127.96,127.79,3.9185]
[1740714575743,14.62,128.01,127.86,0.05177562]
[1740714575950,1.9538,128.0,127.86,0.05177562]
[1740714576249,1.9538,128.0,127.86,28.13328688]
[1740714576450,1.40363688,127.99,127.86,28.13328688]
[1740714576650,7.8267,127.9,127.86,28.13328688]
[1740714576852,14.62,127.94,127.85,1.9201]
[1740714577051,14.67264953,127.94,127.91,0.05422647]
[1740714577254,7.825,127.92,127.91,0.05422647]
[1740714577450,14.62,127.94,127.85,1.9201]
[1740714577850,2.15448799,127.93,127.9,0.05505825]
[1740714579345,7.8256,127.91,127.9,0.05505825]
[1740714579956,4.08998799,127.93,127.8,4.0095]
[1740714580263,190.0,127.92,127.8,4.0095]
[1740714580452,7.8303,127.84,127.8,32.14278688]
[1740714580652,7.8303,127.84,127.8,4.0095]
[1740714581053,7.8294,127.85,127.8,4.0095]
[1740714581251,0.05310063,127.83,127.81,0.05637021]
[1740714581552,7.8303,127.84,127.8,32.14278688]
[1740714581952,0.05193275,127.83,127.81,0.05176612]
[1740714582249,190.0,127.92,127.8,32.14278688]
[1740714582754,0.05784823,127.83,127.81,0.05442479]
[1740714583055,190.0,127.92,127.81,28.18382045]
[1740714583253,0.05247733,127.83,127.81,28.18382045]
[1740714583449,190.0,127.92,127.81,28.13328688]
[1740714583650,0.04921706,127.83,127.73,2.0029]
[1740714583956,7.8323,127.8,127.73,13.30358688]
[1740714584158,14.62,127.83,127.73,2.0029]
[1740714584455,7.8345,127.77,127.73,2.0029]
[1740714584658,14.62,127.83,127.73,13.30358688]
[1740714584858,0.05671336,127.76,127.74,0.05526945]
[1740714585059,3.875,127.82,127.73,11.30068688]
[1740714585260,0.05912576,127.76,127.74,0.05515848]
[1740714585455,190.0,127.8,127.65,3.9329]
[1740714585657,0.05320037,127.76,127.65,15.23358688]
[1740714585855,190.0,127.79,127.65,15.23358688]
[1740714586060,190.0,127.79,127.65,23.07508688]
[1740714586353,190.0,127.79,127.65,3.9329]
[1740714586750,0.05860611,127.73,127.71,0.05989173]
[1740714586954,190.0,127.79,127.65,3.9329]
[1740714587157,0.05888232,127.73,127.71,0.05590029]
[1740714587857,3.875,127.82,127.71,0.05590029]
[1740714588055,3.875,127.82,127.65,3.9329]
[1740714588556,3.875,127.82,127.65,15.17470456]
[1740714588957,0.05354096,127.75,127.73,7.8365]
[1740714589356,3.875,127.82,127.73,11.24180456]
[1740714589562,0.05126853,127.75,127.73,11.29764873]
[1740714589760,3.875,127.82,127.73,11.24180456]
[1740714589961,0.05887519,127.75,127.62,227.4]
[1740714590260,1.9755,127.81,127.62,227.4]
[1740714590456,1.9755,127.81,127.62,235.57557117]
[1740714590662,7.835,127.76,127.62,235.57557117]
[1740714590862,1.9755,127.81,127.62,235.57557117]
[1740714591157,0.0499589,127.73,127.71,7.8377]
[1740714591361,7.8341,127.78,127.71,7.8377]
[1740714591563,7.8341,127.78,127.62,235.57557117]
[1740714591861,0.0504172,127.73,127.71,0.05092683]
[1740714592064,1.9755,127.81,127.62,235.57557117]
[1740714592363,0.05193565,127.73,127.71,0.04949176]
[1740714592558,0.05193565,127.73,127.62,235.57557117]
[1740714592760,1.9755,127.81,127.7,0.05273633]
[1740714593065,7.8332,127.79,127.62,235.57557117]
[1740714593261,0.04967108,127.77,127.74,0.05421498]
[1740714593563,7.8329,127.8,127.69,14.62]
[1740714593964,7.8329,127.8,127.69,25.86180456]
[1740714594363,14.62,127.86,127.69,14.62]
[1740714594564,0.05566941,127.76,127.73,0.05908054]
[1740714594760,7.8318,127.81,127.69,14.62]
[1740714594965,0.05885272,127.76,127.73,0.05246322]
[1740714595164,14.62,127.86,127.75,7.8349]
[1740714595464,14.62,127.85,127.7,3.969]
[1740714595663,2.0616,127.84,127.7,7.37770456]
[1740714595865,7.8319,127.81,127.75,7.8349]
[1740714596067,2.0616,127.84,127.7,7.37770456]
[1740714596263,0.05917634,127.79,127.77,0.05014765]
[1740714596464,2.0616,127.84,127.77,3.45885221]
[1740714596663,2.0616,127.84,127.77,0.05014765]
[1740714596664,0.05707807,127.79,127.77,0.05014765]
[1740714596863,2.0616,127.84,127.77,0.05014765]
[1740714597066,0.05798075,127.79,127.77,3.45885221]
[1740714597363,2.0616,127.84,127.77,3.45885221]
[1740714597563,7.8336,127.78,127.77,3.45885221]
[1740714597764,0.05719124,127.82,127.77,3.45885221]
[1740714597964,0.05719124,127.82,127.77,0.05014765]
[1740714598166,2.0616,127.84,127.77,0.05014765]
[1740714598363,0.05155918,127.81,127.77,0.05014765]
[1740714598562,7.88345918,127.81,127.77,0.05014765]
[1740714599565,0.05155918,127.81,127.78,7.8335]
[1740714599766,0.05155918,127.81,127.78,9.7503]
[1740714599965,0.05155918,127.81,127.8,7.8323]
[1740714600166,0.05155918,127.81,127.78,7.22110456]
[1740714600361,190.0,127.88,127.78,3.8124]
[1740714600567,7.8282,127.87,127.82,7.8311]
[1740714600869,1.8917,127.89,127.79,2.0838]
[1740714601069,1.8917,127.89,127.79,5.49250456]
[1740714601267,7.8298,127.85,127.81,7.8317]
[1740714601464,1.8917,127.89,127.79,2.0838]
[1740714601764,14.62,127.92,127.83,7.8304]
[1740714601765,0.04980192,127.84,127.83,7.8304]
[1740714601972,7.8277,127.88,127.82,0.05442239]
[1740714602163,2.0199,127.93,127.79,2.0838]
[1740714602369,1.9034,127.95,127.79,2.0838]
[1740714602665,86.16919686,127.97,127.79,2.0838]
[1740714602970,84.14929686,127.97,127.8,1.4206247]
[1740714603168,84.14929686,127.97,127.86,0.05462614]
[1740714603369,46.52209686,127.97,127.87,227.56]
[1740714603565,45.14119686,127.97,127.87,227.56]
[1740714603772,45.14119686,127.97,127.87,251.02]
[1740714603976,7.8164,128.06,127.95,7.823]
[1740714604371,5.9668,128.09,127.99,0.05150702]
[1740714604372,0.05288485,128.01,127.99,0.05150702]
[1740714604568,7.8158,128.08,127.96,7.8225]
[1740714604970,0.05455735,128.01,127.99,0.05001503]
[1740714605268,13.7815,128.09,127.97,7.8213]
[1740714605464,0.04993136,128.01,127.99,0.05406992]
[1740714605872,137.88673681,128.12,128.01,7.8193]
[1740714606770,9.8318,128.12,128.01,7.8193]
[1740714606970,0.05554341,128.08,128.05,0.05151978]
[1740714607768,1.9563,128.15,128.05,23.47151978]
[1740714607974,7.8122,128.13,128.05,0.05151978]
[1740714608171,1.9563,128.15,128.01,14.6]
[1740714608369,9.7673,128.15,128.01,14.6]
[1740714608571,9.7673,128.15,128.05,7.8169]
[1740714608771,2.019,128.19,128.01,14.6]
[1740714608971,2.019,128.19,128.07,7.8157]
[1740714608972,0.05850158,128.11,128.07,7.8157]
[1740714609174,0.05850158,128.11,128.09,0.05360043]
[1740714609374,2.019,128.19,128.01,14.6]
[1740714609669,0.0518868,128.11,128.09,0.05971734]
[1740714610076,2.019,128.19,128.02,1.56225589]
[1740714610275,0.05695215,128.11,128.09,0.0498484]
[1740714610679,7.8103,128.16,128.06,7.8159]
[1740714610879,0.04933804,128.11,128.09,0.05804405]
[1740714611179,7.8122,128.13,128.03,178.57615819]
[1740714611379,0.05301684,128.11,128.09,0.05670678]
[1740714614289,0.05301684,128.11,127.98,391.43615819]
[1740714614587,14.58,128.17,127.98,212.86]
[1740714614588,1.39663796,128.16,127.98,212.86]
[1740714614788,24.83663796,128.16,127.98,212.86]
[1740714614988,1.39663796,128.15,127.93,116.89870407]
[1740714615191,23.44,128.16,127.93,116.89870407]
[1740714615387,1.39574125,128.15,127.89,227.12]
[1740714615585,0.0595523,128.06,128.03,6.461e-05]
[1740714615786,14.6395523,128.06,128.03,6.461e-05]
[1740714615992,7.8217,127.98,127.9,7.8261]
[1740714616583,194.0999,128.05,127.92,7.8249]
[1740714616787,0.05320519,127.95,127.92,7.87578449]
[1740714617093,4.0999,128.05,127.9,7.8257]
[1740714617392,1.39642981,128.04,127.89,212.54]
[1740714617588,7.8249,127.93,127.89,212.54]
[1740714617797,14.58,127.98,127.87,32.33566521]
[1740714618087,0.05410989,127.92,127.86,127.34855301]
[1740714618389,0.05410989,127.92,127.91,0.05474977]
[1740714618592,0.05410989,127.92,127.81,212.54]
[1740714618892,190.0,127.96,127.9,0.05116896]
[1740714619096,0.05162056,127.88,127.81,212.54]
[1740714619396,1.39465082,127.96,127.81,212.54]
[1740714619693,3.48325082,127.96,127.81,212.54]
[1740714619893,7.828,127.88,127.81,212.54]
[1740714620095,190.0,127.95,127.81,212.54]
[1740714620291,0.05064955,127.86,127.83,0.05427559]
[1740714620793,7.8274,127.89,127.81,212.54]
[1740714620989,0.05470328,127.86,127.83,7.88035232]
[1740714621384,190.0,127.95,127.83,7.8302]
[1740714621583,0.05461095,127.86,127.83,7.88131299]
[1740714621788,7.8267,127.9,127.83,7.8302]
[1740714622194,0.05930549,127.86,127.83,0.05448278]
[1740714622494,2.0886,127.96,127.83,23.46]
[1740714622796,2.0886,127.96,127.81,212.54]
[1740714622992,2.0886,127.96,127.82,14.6]
[1740714623194,3.9488,127.97,127.82,14.6]
[1740714623389,2.0345,127.97,127.82,14.6]
[1740714623594,2.0345,127.97,127.83,1.4205226]
[1740714623795,9.859e-05,127.91,127.88,0.05952003]
[1740714624192,2.0345,127.97,127.88,23.46]
[1740714624394,2.0345,127.97,127.82,16.16470035]
[1740714624699,2.0345,127.97,127.83,1.42038774]
[1740714625100,2.682e-05,127.91,127.89,0.05092943]
[1740714625494,2.0345,127.97,127.89,0.05092943]
[1740714625495,2.0345,127.97,127.89,23.46]
[1740714625802,2.0341,128.02,127.82,39.60470035]
[1740714626001,2.0341,128.02,127.83,41.02484031]
[1740714626198,2.0497,128.06,127.84,2.98471792]
[1740714626398,2.0497,128.06,127.91,0.05342791]
[1740714626596,2.0497,128.06,127.98,7.8209]
[1740714626793,2.0497,128.06,127.92,227.24]
[1740714627691,9.727e-05,128.0,127.98,0.05087749]
[1740714627893,9.727e-05,128.0,127.99,7.8207]
[1740714628104,2.0413,128.07,127.98,23.44]
[1740714628298,2.0413,128.07,127.92,405.81615819]
[1740714628500,3.8659,128.12,127.93,1.4193387]
[1740714628805,1.9076,128.17,128.05,7.8167]
[1740714629001,0.04935349,128.04,128.01,0.0573927]
[1740714629199,1.39727956,128.16,127.97,14.58]
[1740714629397,20.3846,128.17,127.97,193.15615819]
[1740714629597,20.3846,128.17,128.01,0.0568165]
[1740714629900,20.3846,128.17,128.06,7.8162]
[1740714630097,20.3846,128.17,127.97,193.15615819]
[1740714630292,7.8121,128.14,128.08,7.8151]
[1740714630494,5.8046,128.17,128.03,212.56]
[1740714630699,0.05351103,128.11,128.09,0.05833608]
[1740714630899,0.05351103,128.11,128.09,7.87283608]
[1740714631101,5.8046,128.17,128.09,0.05598822]
[1740714631297,0.05612352,128.11,128.09,0.05598822]
[1740714631503,5.8046,128.17,128.04,14.58]
[1740714631808,0.05941606,128.11,128.09,0.05466718]
[1740714632105,7.812,128.14,128.08,7.8151]
[1740714632407,0.05095399,128.11,128.09,0.05940888]
[1740714632806,7.8127,128.13,128.04,14.58]
[1740714632999,0.05730654,128.11,128.09,0.05571742]
[1740714633307,14.58,128.13,127.94,1.41939855]
[1740714633708,7.8163,128.07,127.94,1.41939855]
[1740714634009,14.58,128.13,127.94,32.33566521]
[1740714634211,7.8155,128.08,127.95,1.41929771]
[1740714634407,14.58,128.13,127.94,32.33566521]
[1740714634408,3.724e-05,128.02,127.99,0.05558784]
[1740714634604,14.58,128.13,128.01,7.8195]
[1740714634810,7.8164,128.07,127.94,32.33566521]
[1740714635004,14.58,128.13,127.95,1.41924671]
[1740714635618,0.05243146,128.05,128.04,7.8177]
[1740714636111,0.05105797,128.06,128.04,7.8172]
[1740714636608,0.05997557,128.06,128.04,0.06007068]
[1740714636807,0.05997557,128.06,128.05,7.817]
[1740714637913,0.05997557,128.06,128.05,31.237]
[1740714637914,7.557e-05,128.06,128.05,31.237]
[1740714638315,7.557e-05,128.06,128.04,0.06007068]
[1740714639414,7.81667557,128.06,128.04,0.06007068]
[1740714639814,7.557e-05,128.06,128.04,0.06007068]
[1740714640111,7.557e-05,128.06,127.96,14.58]
[1740714640415,190.0,128.11,127.93,329.45870407]
[1740714640610,192.077,128.1,127.93,329.45870407]
[1740714640910,7.8193,128.02,127.97,7.8217]
[1740714641117,2.0402,128.09,127.93,329.45870407]
[1740714641313,0.05715936,128.01,127.98,0.05981549]
[1740714641506,190.0,128.08,127.95,7.823]
[1740714641713,14.56,128.05,127.93,116.89870407]
[1740714641912,0.0549278,128.01,127.98,5.203e-05]
[1740714642216,190.0,128.0,127.93,82.3697561]
[1740714642912,190.0,128.0,127.88,32.33566521]
[1740714643113,14.56,128.05,127.88,32.33566521]
[1740714643313,0.06015888,127.95,127.93,0.05227577]
[1740714643511,7.8226,127.96,127.93,0.05227577]
[1740714643715,0.05413467,127.95,127.88,32.33566521]
[1740714643915,0.05413467,127.95,127.93,0.05025009]
[1740714644211,7.87506187,127.93,127.88,32.33566521]
[1740714644421,0.05066187,127.93,127.88,32.33566521]
[1740714644620,14.56,127.98,127.88,32.33566521]
[1740714644915,0.05237064,127.92,127.89,0.05667317]
[1740714645119,0.05237064,127.92,127.88,32.33566521]
[1740714645418,38.0,127.98,127.88,32.33566521]
[1740714645419,7.8262,127.9,127.89,0.05692111]
[1740714645617,0.05265752,127.91,127.88,32.33566521]
[1740714645810,1.39407776,127.97,127.88,32.33566521]
[1740714646011,14.56,127.98,127.88,32.33566521]
[1740714646210,14.56,127.98,126.82,135.6964085]
[1740714646211,14.56,127.98,127.74,23.44]
[1740714646815,0.05115002,127.9,127.87,7.88606825]
[1740714647006,14.56,127.98,127.87,7.828]
[1740714647209,14.56,127.98,127.87,7.8825577]
[1740714647408,0.05647147,127.9,127.87,0.0545577]
[1740714647609,14.56,127.98,127.76,212.58]
[1740714647912,0.05145571,127.9,127.87,0.0521213]
[1740714648114,0.05145571,127.9,127.77,14.58]
[1740714648115,14.56,127.98,127.77,14.58]
[1740714648313,0.05315314,127.86,127.83,0.05435566]
[1740714648509,7.8295,127.85,127.8,7.8319]
[1740714648713,7.8295,127.85,127.83,0.05590384]
[1740714648918,0.05255966,127.86,127.83,0.05590384]
[1740714649316,7.88175966,127.86,127.83,0.05590384]
[1740714649521,0.05255966,127.86,127.83,0.05590384]
[1740714650018,14.58,127.97,127.83,23.51590384]
[1740714650215,14.58,127.97,127.83,0.05590384]
[1740714650418,7.825,127.92,127.86,7.8285]
[1740714650611,14.58,127.97,127.81,14.58]
[1740714651119,0.05890447,127.9,127.88,0.05191826]
[1740714651515,14.58,127.98,127.86,7.8282]
[1740714651715,0.05713747,127.9,127.88,0.05619376]
[1740714651917,14.58,127.98,127.86,7.8282]
[1740714652118,0.05522852,127.9,127.88,0.05430578]
[1740714652314,14.58,127.98,127.85,7.8292]
[1740714652516,14.58,127.98,127.88,0.05565405]
[1740714652823,14.58,127.98,127.85,7.8292]
[1740714653123,0.0548907,127.94,127.92,0.05531302]
[1740714653320,0.0548907,127.94,127.81,14.58]
[1740714653815,7.8255,127.92,127.81,14.58]
[1740714654023,7.8255,127.92,127.86,7.8281]
[1740714654220,14.58,127.98,127.86,7.8281]
[1740714654422,0.0575871,127.9,127.88,0.05469717]
[1740714654615,190.0,127.97,127.85,7.8291]
[1740714654818,0.05169915,127.9,127.88,0.05103129]
[1740714655214,0.05307053,127.9,127.84,7.8297]
[1740714655526,14.58,127.98,127.88,0.05418984]
[1740714655720,14.58,127.98,127.81,14.58]
[1740714656025,7.8255,127.92,127.88,0.05616396]
[1740714656224,0.0527074,127.91,127.87,7.8276]
[1740714656725,14.58,127.98,127.87,7.8276]
[1740714656726,0.05100292,127.9,127.89,0.05521346]
[1740714657024,7.8256,127.91,127.86,7.8283]
[1740714657224,7.87518585,127.91,127.88,0.06010613]
[1740714657420,0.04958585,127.91,127.88,0.06010613]
[1740714657718,0.04958585,127.91,127.89,7.8264]
[1740714657719,0.05679231,127.91,127.89,7.8264]
[1740714658922,0.05679231,127.91,127.88,0.05976334]
[1740714659422,7.88259231,127.91,127.88,0.05976334]
[1740714659623,0.05679231,127.91,127.88,0.05976334]
[1740714661125,7.8263,127.9,127.88,0.05976334]
[1740714661324,0.05679231,127.91,127.88,0.05976334]
[1740714662520,1.8935,127.98,127.88,0.05976334]
[1740714662726,7.8213,127.99,127.94,7.8233]
[1740714662927,116.68910646,128.04,127.89,3.7843]
[1740714663222,116.68910646,128.04,127.96,7.8221]
[1740714663519,116.68910646,128.04,127.89,3.7843]
[1740714663726,0.04977238,128.01,127.99,0.05303456]
[1740714664028,1.9667,128.06,127.9,1.41989793]
[1740714664228,0.05596752,128.01,127.99,0.05278713]
[1740714664418,7.8176,128.05,127.91,1.41989793]
[1740714664623,7.8176,128.05,127.91,179.99605612]
[1740714664822,7.8176,128.05,127.99,7.8202]
[1740714665024,7.8165,128.06,128.0,1.8991]
[1740714665224,7.8165,128.06,128.01,2.095]